[Event "Titled Tuesday Blitz January 10 Early 2023"]
[White "Bacrot, Etienne"]
[Black "Al-Tarboush, Ward"]
[WhiteFideId "605506"]
[BlackFideId "7601450"]
[WhiteElo "2667"]
[BlackElo "2256"]
[Result "1-0"]
[Round "03"]
[TimeControl "180+2"]
[Date "2023.01.10"]
[WhiteClock "0:00:15"]
[BlackClock "0:00:04"]

1. e4 {[%clk 0:03:00]}  c5 {[%clk 0:02:59]} 2. Nf3 {[%clk 0:03:01]}  Nc6 {[%clk 0:02:59]} 3. Bb5 {[%clk 0:03:00]}  e6 {[%clk 0:02:59]} 4. O-O {[%clk 0:03:00]}  Nge7 {[%clk 0:02:59]} 5. Re1 {[%clk 0:03:00]}  Nd4 {[%clk 0:02:59]} 6. Nxd4 {[%clk 0:02:57]}  cxd4 {[%clk 0:03:00]} 7. c4 {[%clk 0:02:55]}  Nc6 {[%clk 0:02:58]} 8. d3 {[%clk 0:02:55]}  Be7 {[%clk 0:02:57]} 9. Qg4 {[%clk 0:02:53]}  g6 {[%clk 0:02:50]} 10. Bh6 {[%clk 0:02:51]}  a6 {[%clk 0:02:39]} 11. Bxc6 {[%clk 0:02:38]}  dxc6 {[%clk 0:02:39]} 12. e5 {[%clk 0:02:38]}  c5 {[%clk 0:02:31]} 13. Nd2 {[%clk 0:02:34]}  Qc7 {[%clk 0:02:26]} 14. Bg5 {[%clk 0:02:11]}  h5 {[%clk 0:02:12]} 15. Qf4 {[%clk 0:01:55]}  Bxg5 {[%clk 0:01:59]} 16. Qxg5 {[%clk 0:01:55]}  Qe7 {[%clk 0:01:59]} 17. Qf4 {[%clk 0:01:52]}  g5 {[%clk 0:01:58]} 18. Qf3 {[%clk 0:01:51]}  g4 {[%clk 0:01:57]} 19. Qf4 {[%clk 0:01:51]}  Bd7 {[%clk 0:01:47]} 20. Ne4 {[%clk 0:01:51]}  Bc6 {[%clk 0:01:47]} 21. Nd6+ {[%clk 0:01:49]}  Kd7 {[%clk 0:01:43]} 22. b4 {[%clk 0:01:42]}  cxb4 {[%clk 0:01:22]} 23. Qxd4 {[%clk 0:01:41]}  Kc7 {[%clk 0:01:22]} 24. Rab1 {[%clk 0:01:34]}  f6 {[%clk 0:01:21]} 25. c5 {[%clk 0:01:19]}  f5 {[%clk 0:01:20]} 26. Qxb4 {[%clk 0:01:18]}  Rab8 {[%clk 0:00:59]} 27. Qb6+ {[%clk 0:01:12]}  Kd7 {[%clk 0:00:59]} 28. Rb4 {[%clk 0:01:11]}  Qd8 {[%clk 0:00:57]} 29. Qxd8+ {[%clk 0:00:51]}  Rhxd8 {[%clk 0:00:54]} 30. Reb1 {[%clk 0:00:51]}  Kc7 {[%clk 0:00:53]} 31. d4 {[%clk 0:00:50]}  h4 {[%clk 0:00:51]} 32. Rb6 {[%clk 0:00:38]}  Rg8 {[%clk 0:00:46]} 33. a3 {[%clk 0:00:28]}  g3 {[%clk 0:00:44]} 34. fxg3 {[%clk 0:00:26]}  hxg3 {[%clk 0:00:45]} 35. h3 {[%clk 0:00:26]}  Rg7 {[%clk 0:00:35]} 36. Rf1 {[%clk 0:00:25]}  Rf8 {[%clk 0:00:28]} 37. Rf4 {[%clk 0:00:25]}  Rh8 {[%clk 0:00:26]} 38. Nc4 {[%clk 0:00:25]}  Bd5 {[%clk 0:00:24]} 39. Ne3 {[%clk 0:00:25]}  Bc6 {[%clk 0:00:20]} 40. Rb3 {[%clk 0:00:19]}  Rd8 {[%clk 0:00:19]} 41. Nf1 {[%clk 0:00:18]}  Rgd7 {[%clk 0:00:19]} 42. Rd3 {[%clk 0:00:16]}  Bb5 {[%clk 0:00:17]} 43. Rd1 {[%clk 0:00:14]}  Be2 {[%clk 0:00:16]} 44. Rd2 {[%clk 0:00:14]}  Bxf1 {[%clk 0:00:15]} 45. Kxf1 {[%clk 0:00:15]}  b6 {[%clk 0:00:13]} 46. cxb6+ {[%clk 0:00:14]}  Kxb6 {[%clk 0:00:14]} 47. Ke2 {[%clk 0:00:15]}  Ka7 {[%clk 0:00:14]} 48. Rd3 {[%clk 0:00:16]}  Rd5 {[%clk 0:00:10]} 49. h4 {[%clk 0:00:15]}  Rb8 {[%clk 0:00:07]} 50. Kf3 {[%clk 0:00:14]}  Rbd8 {[%clk 0:00:02]} 51. Ke3 {[%clk 0:00:12]}  Rg8 {[%clk 0:00:01]} 52. h5 {[%clk 0:00:11]}  Rh8 {[%clk 0:00:02]} 53. Rh4 {[%clk 0:00:11]}  Rd7 {[%clk 0:00:02]} 54. Kf4 {[%clk 0:00:11]}  Rdh7 {[%clk 0:00:02]} 55. Rxg3 {[%clk 0:00:11]}  Rxh5 {[%clk 0:00:02]} 56. Rxh5 {[%clk 0:00:11]}  Rxh5 {[%clk 0:00:03]} 57. Rh3 {[%clk 0:00:12]}  Rxh3 {[%clk 0:00:03]} 58. gxh3 {[%clk 0:00:12]}  Kb6 {[%clk 0:00:03]} 59. h4 {[%clk 0:00:13]}  Kc7 {[%clk 0:00:03]} 60. h5 {[%clk 0:00:14]}  Kd7 {[%clk 0:00:04]} 61. h6 {[%clk 0:00:14]}  Ke7 {[%clk 0:00:04]} 62. h7 {[%clk 0:00:15]} 1-0


[Site "https://www.chess.com"]

[Event "Titled Tuesday Blitz January 10 Early 2023"]
[White "Derjabin, Ilja"]
[Black "Harsh Suresh"]
[WhiteFideId "14104768"]
[BlackFideId "45018464"]
[WhiteElo "2333"]
[BlackElo "2298"]
[Result "0-1"]
[Round "03"]
[TimeControl "180+2"]
[Date "2023.01.10"]
[WhiteClock "0:00:08"]
[BlackClock "0:01:33"]

1. d4 {[%clk 0:03:00]}  g6 {[%clk 0:02:59]} 2. c4 {[%clk 0:03:00]}  Bg7 {[%clk 0:02:59]} 3. e3 {[%clk 0:03:00]}  d6 {[%clk 0:02:58]} 4. Nc3 {[%clk 0:03:00]}  c5 {[%clk 0:02:58]} 5. d5 {[%clk 0:03:00]}  Nf6 {[%clk 0:02:57]} 6. Nge2 {[%clk 0:03:00]}  O-O {[%clk 0:02:58]} 7. Ng3 {[%clk 0:03:00]}  e6 {[%clk 0:02:57]} 8. Be2 {[%clk 0:02:59]}  exd5 {[%clk 0:02:58]} 9. cxd5 {[%clk 0:03:00]}  Re8 {[%clk 0:02:58]} 10. O-O {[%clk 0:02:59]}  Na6 {[%clk 0:02:58]} 11. e4 {[%clk 0:02:59]}  Nc7 {[%clk 0:02:57]} 12. f3 {[%clk 0:02:58]}  Rb8 {[%clk 0:02:53]} 13. a4 {[%clk 0:02:58]}  a6 {[%clk 0:02:52]} 14. a5 {[%clk 0:02:56]}  b5 {[%clk 0:02:52]} 15. axb6 {[%clk 0:02:55]}  Rxb6 {[%clk 0:02:53]} 16. Kh1 {[%clk 0:02:56]}  Nb5 {[%clk 0:02:51]} 17. Nxb5 {[%clk 0:02:46]}  axb5 {[%clk 0:02:51]} 18. b4 {[%clk 0:02:32]}  Nxd5 {[%clk 0:02:25]} 19. Qxd5 {[%clk 0:01:54]}  Bxa1 {[%clk 0:02:24]} 20. bxc5 {[%clk 0:01:54]}  dxc5 {[%clk 0:02:24]} 21. Qxc5 {[%clk 0:01:40]}  Bd4 {[%clk 0:02:24]} 22. Qb4 {[%clk 0:01:38]}  Qd6 {[%clk 0:02:17]} 23. Qxd6 {[%clk 0:01:37]}  Rxd6 {[%clk 0:02:18]} 24. Bxb5 {[%clk 0:01:38]}  Red8 {[%clk 0:02:16]} 25. Bf4 {[%clk 0:01:34]}  Re6 {[%clk 0:02:09]} 26. Bc4 {[%clk 0:01:27]}  Ba6 {[%clk 0:02:00]} 27. Bxe6 {[%clk 0:01:20]}  Bxf1 {[%clk 0:02:00]} 28. Bxf7+ {[%clk 0:01:20]}  Kxf7 {[%clk 0:02:01]} 29. Nxf1 {[%clk 0:01:21]}  Ra8 {[%clk 0:01:56]} 30. g4 {[%clk 0:01:12]}  Ra2 {[%clk 0:01:56]} 31. Bg3 {[%clk 0:01:07]}  g5 {[%clk 0:01:51]} 32. h4 {[%clk 0:01:03]}  h6 {[%clk 0:01:51]} 33. h5 {[%clk 0:00:55]}  Ke6 {[%clk 0:01:47]} 34. Bc7 {[%clk 0:00:40]}  Rf2 {[%clk 0:01:44]} 35. Nh2 {[%clk 0:00:37]}  Be5 {[%clk 0:01:42]} 36. Bxe5 {[%clk 0:00:33]}  Kxe5 {[%clk 0:01:43]} 37. Kg1 {[%clk 0:00:32]}  Re2 {[%clk 0:01:41]} 38. Nf1 {[%clk 0:00:26]}  Kf4 {[%clk 0:01:41]} 39. e5 {[%clk 0:00:17]}  Kxf3 {[%clk 0:01:36]} 40. Nh2+ {[%clk 0:00:09]}  Kg3 {[%clk 0:01:34]} 41. Nf1+ {[%clk 0:00:09]}  Kxg4 {[%clk 0:01:33]} 42. Nh2+ {[%clk 0:00:08]}  Kf4 {[%clk 0:01:33]} 0-1


[Site "https://www.chess.com"]

[Event "Titled Tuesday Blitz January 10 Early 2023"]
[White "Demchenko, Anton"]
[Black "Rahman, Ziaur"]
[WhiteFideId "4160258"]
[BlackFideId "10200037"]
[WhiteElo "2623"]
[BlackElo "2464"]
[Result "1-0"]
[Round "03"]
[TimeControl "180+2"]
[Date "2023.01.10"]
[WhiteClock "0:00:08"]
[BlackClock "0:00:01"]

1. e4 {[%clk 0:03:00]}  c5 {[%clk 0:02:55]} 2. Nf3 {[%clk 0:02:59]}  e6 {[%clk 0:02:53]} 3. c3 {[%clk 0:02:57]}  d5 {[%clk 0:02:52]} 4. exd5 {[%clk 0:02:56]}  Qxd5 {[%clk 0:02:52]} 5. d4 {[%clk 0:02:55]}  Nf6 {[%clk 0:02:50]} 6. Na3 {[%clk 0:02:55]}  a6 {[%clk 0:02:49]} 7. Nc4 {[%clk 0:02:51]}  Nbd7 {[%clk 0:02:48]} 8. Be2 {[%clk 0:02:48]}  b5 {[%clk 0:02:42]} 9. Na5 {[%clk 0:02:42]}  Be7 {[%clk 0:02:26]} 10. O-O {[%clk 0:02:41]}  Bd8 {[%clk 0:02:11]} 11. Ng5 {[%clk 0:02:16]}  Qd6 {[%clk 0:01:28]} 12. Bf3 {[%clk 0:02:13]}  h6 {[%clk 0:00:40]} 13. Nh3 {[%clk 0:01:56]}  Bxa5 {[%clk 0:00:34]} 14. Bxa8 {[%clk 0:01:53]}  cxd4 {[%clk 0:00:32]} 15. cxd4 {[%clk 0:01:46]}  O-O {[%clk 0:00:28]} 16. Bf4 {[%clk 0:01:39]}  Qb6 {[%clk 0:00:28]} 17. Rc1 {[%clk 0:01:38]}  Qa7 {[%clk 0:00:28]} 18. Bc6 {[%clk 0:01:33]}  Bb6 {[%clk 0:00:28]} 19. Be3 {[%clk 0:01:27]}  Nb8 {[%clk 0:00:28]} 20. Bf3 {[%clk 0:01:25]}  Rd8 {[%clk 0:00:28]} 21. Qc2 {[%clk 0:01:08]}  Bd7 {[%clk 0:00:20]} 22. Rfd1 {[%clk 0:01:04]}  Nd5 {[%clk 0:00:18]} 23. Bxd5 {[%clk 0:01:03]}  exd5 {[%clk 0:00:19]} 24. Nf4 {[%clk 0:01:04]}  Bc6 {[%clk 0:00:18]} 25. Nd3 {[%clk 0:00:56]}  f6 {[%clk 0:00:17]} 26. Qe2 {[%clk 0:00:51]}  Be8 {[%clk 0:00:16]} 27. Nf4 {[%clk 0:00:48]}  Bf7 {[%clk 0:00:16]} 28. Qg4 {[%clk 0:00:48]}  Qe7 {[%clk 0:00:12]} 29. Rc8 {[%clk 0:00:39]}  Kh7 {[%clk 0:00:11]} 30. Rxd8 {[%clk 0:00:36]}  Qxd8 {[%clk 0:00:11]} 31. Qf5+ {[%clk 0:00:30]}  g6 {[%clk 0:00:11]} 32. Qh3 {[%clk 0:00:31]}  Nc6 {[%clk 0:00:10]} 33. Nxg6 {[%clk 0:00:22]}  Kxg6 {[%clk 0:00:09]} 34. Qxh6+ {[%clk 0:00:23]}  Kf5 {[%clk 0:00:09]} 35. Re1 {[%clk 0:00:14]}  Qg8 {[%clk 0:00:06]} 36. h3 {[%clk 0:00:14]}  Ke6 {[%clk 0:00:01]} 37. Bg5+ {[%clk 0:00:08]}  Kd7 {[%clk 0:00:01]} 38. Qxf6 {[%clk 0:00:08]} 1-0


[Site "https://www.chess.com"]

[Event "Titled Tuesday Blitz January 10 Early 2023"]
[White "Kuzmin, Roman"]
[Black "Pakleza, Zbigniew"]
[WhiteFideId "44134932"]
[BlackFideId "1119290"]
[WhiteElo "2198"]
[BlackElo "2494"]
[Result "0-1"]
[Round "03"]
[TimeControl "180+2"]
[Date "2023.01.10"]
[WhiteClock "0:00:08"]
[BlackClock "0:00:32"]

1. e4 {[%clk 0:02:59]}  d6 {[%clk 0:03:00]} 2. d4 {[%clk 0:02:59]}  Nf6 {[%clk 0:03:01]} 3. Nc3 {[%clk 0:02:59]}  c6 {[%clk 0:03:01]} 4. Nf3 {[%clk 0:02:56]}  Bg4 {[%clk 0:03:01]} 5. a3 {[%clk 0:02:50]}  e6 {[%clk 0:03:00]} 6. h3 {[%clk 0:02:45]}  Bh5 {[%clk 0:03:00]} 7. Bd3 {[%clk 0:02:41]}  d5 {[%clk 0:03:00]} 8. e5 {[%clk 0:02:40]}  Nfd7 {[%clk 0:03:00]} 9. Nb1 {[%clk 0:02:30]}  c5 {[%clk 0:02:58]} 10. c3 {[%clk 0:02:28]}  Nc6 {[%clk 0:02:58]} 11. g4 {[%clk 0:02:23]}  Bg6 {[%clk 0:02:57]} 12. Be2 {[%clk 0:02:22]}  Be7 {[%clk 0:02:41]} 13. Be3 {[%clk 0:01:52]}  Rc8 {[%clk 0:02:38]} 14. Nbd2 {[%clk 0:01:51]}  cxd4 {[%clk 0:02:22]} 15. cxd4 {[%clk 0:01:49]}  O-O {[%clk 0:02:20]} 16. h4 {[%clk 0:01:45]}  f5 {[%clk 0:01:53]} 17. h5 {[%clk 0:01:30]}  Be8 {[%clk 0:01:45]} 18. gxf5 {[%clk 0:01:28]}  Rxf5 {[%clk 0:01:46]} 19. h6 {[%clk 0:01:27]}  g6 {[%clk 0:01:42]} 20. Bd3 {[%clk 0:01:25]}  Rf8 {[%clk 0:01:37]} 21. Rg1 {[%clk 0:01:19]}  Nb6 {[%clk 0:01:32]} 22. b3 {[%clk 0:01:17]}  a5 {[%clk 0:01:28]} 23. Qb1 {[%clk 0:01:13]}  Kh8 {[%clk 0:01:24]} 24. Ng5 {[%clk 0:01:06]}  Bxg5 {[%clk 0:00:58]} 25. Bxg5 {[%clk 0:01:07]}  Qc7 {[%clk 0:00:58]} 26. Qb2 {[%clk 0:00:56]}  Nd7 {[%clk 0:00:45]} 27. f4 {[%clk 0:00:48]}  Qb6 {[%clk 0:00:33]} 28. Nf3 {[%clk 0:00:46]}  a4 {[%clk 0:00:32]} 29. b4 {[%clk 0:00:41]}  Na5 {[%clk 0:00:31]} 30. Rd1 {[%clk 0:00:08]}  Nc4 {[%clk 0:00:32]} 0-1


[Site "https://www.chess.com"]

[Event "Titled Tuesday Blitz January 10 Early 2023"]
[White "Quinones Garcia, Santiago"]
[Black "Galchenko, Matvey"]
[WhiteFideId "4408497"]
[BlackFideId "24175480"]
[WhiteElo "2248"]
[BlackElo "2438"]
[Result "0-1"]
[Round "03"]
[TimeControl "180+2"]
[Date "2023.01.10"]
[WhiteClock "0:00:03"]
[BlackClock "0:00:23"]

1. d4 {[%clk 0:02:59]}  Nf6 {[%clk 0:02:59]} 2. c4 {[%clk 0:02:59]}  c5 {[%clk 0:02:59]} 3. Nf3 {[%clk 0:02:57]}  cxd4 {[%clk 0:02:59]} 4. Nxd4 {[%clk 0:02:57]}  e5 {[%clk 0:02:59]} 5. Nb5 {[%clk 0:02:56]}  d5 {[%clk 0:02:59]} 6. cxd5 {[%clk 0:02:51]}  Bc5 {[%clk 0:02:59]} 7. e3 {[%clk 0:02:47]}  O-O {[%clk 0:02:58]} 8. Be2 {[%clk 0:02:47]}  e4 {[%clk 0:02:48]} 9. N1c3 {[%clk 0:02:41]}  a6 {[%clk 0:02:46]} 10. Nd4 {[%clk 0:02:40]}  Qe7 {[%clk 0:02:33]} 11. a3 {[%clk 0:02:30]}  Rd8 {[%clk 0:02:32]} 12. b4 {[%clk 0:02:27]}  Bd6 {[%clk 0:02:25]} 13. Qb3 {[%clk 0:02:26]}  Qe5 {[%clk 0:02:15]} 14. Bb2 {[%clk 0:02:25]}  Nbd7 {[%clk 0:02:12]} 15. O-O-O {[%clk 0:02:10]}  Nb6 {[%clk 0:01:52]} 16. Kb1 {[%clk 0:01:35]}  Bd7 {[%clk 0:01:45]} 17. h3 {[%clk 0:01:22]}  Rac8 {[%clk 0:01:35]} 18. Rd2 {[%clk 0:01:19]}  Nbxd5 {[%clk 0:01:01]} 19. Nxd5 {[%clk 0:01:16]}  Qxd5 {[%clk 0:01:01]} 20. Qxd5 {[%clk 0:01:05]}  Nxd5 {[%clk 0:01:01]} 21. Nc2 {[%clk 0:00:46]}  Ba4 {[%clk 0:00:45]} 22. Rhd1 {[%clk 0:00:25]}  Be7 {[%clk 0:00:32]} 23. Rxd5 {[%clk 0:00:06]}  Bxc2+ {[%clk 0:00:30]} 24. Ka2 {[%clk 0:00:06]}  Bxd1 {[%clk 0:00:30]} 25. Rxd1 {[%clk 0:00:07]}  Rc2 {[%clk 0:00:22]} 26. Rxd8+ {[%clk 0:00:04]}  Bxd8 {[%clk 0:00:22]} 27. Bg4 {[%clk 0:00:03]}  Bf6 {[%clk 0:00:23]} 0-1


[Site "https://www.chess.com"]

[Event "Titled Tuesday Blitz January 10 Early 2023"]
[White "Tomashevsky, Evgeny"]
[Black "Tologon tegin, Semetei"]
[WhiteFideId "4147235"]
[BlackFideId "13800574"]
[WhiteElo "2694"]
[BlackElo "2372"]
[Result "1-0"]
[Round "03"]
[TimeControl "180+2"]
[Date "2023.01.10"]
[WhiteClock "0:01:06"]
[BlackClock "0:00:05"]

1. d4 {[%clk 0:03:00]}  Nf6 {[%clk 0:02:53]} 2. g3 {[%clk 0:03:00]}  e6 {[%clk 0:02:52]} 3. Bg2 {[%clk 0:03:00]}  c5 {[%clk 0:02:51]} 4. Nf3 {[%clk 0:02:59]}  cxd4 {[%clk 0:02:33]} 5. Nxd4 {[%clk 0:02:59]}  Nc6 {[%clk 0:02:33]} 6. O-O {[%clk 0:02:55]}  Be7 {[%clk 0:02:27]} 7. c4 {[%clk 0:02:55]}  O-O {[%clk 0:02:27]} 8. Nc3 {[%clk 0:02:54]}  a6 {[%clk 0:02:21]} 9. Bf4 {[%clk 0:02:50]}  Nxd4 {[%clk 0:01:55]} 10. Qxd4 {[%clk 0:02:49]}  d6 {[%clk 0:01:56]} 11. Qd3 {[%clk 0:02:46]}  Qc7 {[%clk 0:01:53]} 12. Rac1 {[%clk 0:02:45]}  Rd8 {[%clk 0:01:51]} 13. Rfd1 {[%clk 0:02:44]}  h6 {[%clk 0:01:46]} 14. c5 {[%clk 0:02:36]}  e5 {[%clk 0:01:41]} 15. cxd6 {[%clk 0:02:36]}  Rxd6 {[%clk 0:01:25]} 16. Bxe5 {[%clk 0:02:34]}  Rxd3 {[%clk 0:01:25]} 17. Bxc7 {[%clk 0:02:34]}  Rxd1+ {[%clk 0:01:25]} 18. Rxd1 {[%clk 0:02:35]}  Be6 {[%clk 0:01:18]} 19. a3 {[%clk 0:02:26]}  Rc8 {[%clk 0:01:15]} 20. Bd6 {[%clk 0:02:26]}  Bxd6 {[%clk 0:01:12]} 21. Rxd6 {[%clk 0:02:27]}  Rc7 {[%clk 0:01:08]} 22. Rb6 {[%clk 0:02:26]}  Bc8 {[%clk 0:01:07]} 23. f4 {[%clk 0:02:23]}  Kf8 {[%clk 0:01:04]} 24. Nd5 {[%clk 0:02:13]}  Nxd5 {[%clk 0:01:03]} 25. Bxd5 {[%clk 0:02:11]}  Ke7 {[%clk 0:00:51]} 26. Kf2 {[%clk 0:02:09]}  f6 {[%clk 0:00:34]} 27. Ke3 {[%clk 0:02:06]}  Kd8 {[%clk 0:00:20]} 28. Kd2 {[%clk 0:01:46]}  Rd7 {[%clk 0:00:18]} 29. e4 {[%clk 0:01:45]}  Kc7 {[%clk 0:00:18]} 30. Rb3 {[%clk 0:01:37]}  f5 {[%clk 0:00:17]} 31. Rc3+ {[%clk 0:01:32]}  Kb8 {[%clk 0:00:17]} 32. Ke3 {[%clk 0:01:31]}  Rd8 {[%clk 0:00:11]} 33. Rd3 {[%clk 0:01:14]}  fxe4 {[%clk 0:00:09]} 34. Bxe4 {[%clk 0:01:14]}  Re8 {[%clk 0:00:10]} 35. Rd5 {[%clk 0:01:15]}  Kc7 {[%clk 0:00:09]} 36. Re5 {[%clk 0:01:13]}  Rxe5 {[%clk 0:00:07]} 37. fxe5 {[%clk 0:01:13]}  b6 {[%clk 0:00:06]} 38. Kd4 {[%clk 0:01:12]}  Be6 {[%clk 0:00:05]} 39. Bd5 {[%clk 0:01:12]}  Bh3 {[%clk 0:00:06]} 40. Bc4 {[%clk 0:01:08]}  a5 {[%clk 0:00:06]} 41. Kd5 {[%clk 0:01:08]}  Kd7 {[%clk 0:00:06]} 42. Bb5+ {[%clk 0:01:08]}  Kc7 {[%clk 0:00:06]} 43. e6 {[%clk 0:01:07]}  Bg4 {[%clk 0:00:05]} 44. e7 {[%clk 0:01:06]} 1-0


[Site "https://www.chess.com"]

[Event "Titled Tuesday Blitz January 10 Early 2023"]
[White "Tari, Aryan"]
[Black "Hamley, Ryan"]
[WhiteFideId "1510045"]
[BlackFideId "30959497"]
[WhiteElo "2642"]
[BlackElo "2092"]
[Result "1/2-1/2"]
[Round "03"]
[TimeControl "180+2"]
[Date "2023.01.10"]
[WhiteClock "0:00:11"]
[BlackClock "0:00:18"]

1. e4 {[%clk 0:03:00]}  e5 {[%clk 0:02:59]} 2. Nf3 {[%clk 0:03:00]}  Nc6 {[%clk 0:03:00]} 3. Nc3 {[%clk 0:03:01]}  Nf6 {[%clk 0:02:59]} 4. a3 {[%clk 0:03:01]}  a6 {[%clk 0:02:54]} 5. d4 {[%clk 0:03:00]}  exd4 {[%clk 0:02:54]} 6. Nxd4 {[%clk 0:03:01]}  d6 {[%clk 0:02:45]} 7. Bc4 {[%clk 0:02:59]}  g6 {[%clk 0:02:44]} 8. O-O {[%clk 0:02:52]}  Bg7 {[%clk 0:02:44]} 9. Nxc6 {[%clk 0:02:46]}  bxc6 {[%clk 0:02:44]} 10. e5 {[%clk 0:02:46]}  dxe5 {[%clk 0:02:36]} 11. Qxd8+ {[%clk 0:02:46]}  Kxd8 {[%clk 0:02:37]} 12. Bxf7 {[%clk 0:02:47]}  Ke7 {[%clk 0:02:37]} 13. Bb3 {[%clk 0:02:27]}  Be6 {[%clk 0:02:37]} 14. Re1 {[%clk 0:02:14]}  Bxb3 {[%clk 0:02:36]} 15. cxb3 {[%clk 0:02:15]}  Kf7 {[%clk 0:02:25]} 16. Be3 {[%clk 0:01:56]}  Nd5 {[%clk 0:02:18]} 17. Nxd5 {[%clk 0:01:56]}  cxd5 {[%clk 0:02:19]} 18. Rac1 {[%clk 0:01:56]}  Rhc8 {[%clk 0:02:06]} 19. Rc6 {[%clk 0:01:48]}  Ke7 {[%clk 0:02:06]} 20. Rec1 {[%clk 0:01:37]}  Kd7 {[%clk 0:02:06]} 21. Bd2 {[%clk 0:01:38]}  e4 {[%clk 0:01:59]} 22. Bf4 {[%clk 0:01:35]}  Bxb2 {[%clk 0:01:58]} 23. Rxc7+ {[%clk 0:01:35]}  Rxc7 {[%clk 0:01:58]} 24. Rxc7+ {[%clk 0:01:36]}  Ke6 {[%clk 0:01:58]} 25. a4 {[%clk 0:01:01]}  Be5 {[%clk 0:01:40]} 26. Bxe5 {[%clk 0:00:57]}  Kxe5 {[%clk 0:01:41]} 27. Rxh7 {[%clk 0:00:57]}  Rb8 {[%clk 0:01:35]} 28. Re7+ {[%clk 0:00:55]}  Kf6 {[%clk 0:01:31]} 29. Ra7 {[%clk 0:00:52]}  Rxb3 {[%clk 0:01:30]} 30. Rxa6+ {[%clk 0:00:52]}  Ke5 {[%clk 0:01:29]} 31. Kf1 {[%clk 0:00:53]}  d4 {[%clk 0:01:29]} 32. Ra5+ {[%clk 0:00:38]}  Kf4 {[%clk 0:01:03]} 33. Ke2 {[%clk 0:00:38]}  Rb2+ {[%clk 0:01:03]} 34. Ke1 {[%clk 0:00:38]}  d3 {[%clk 0:01:01]} 35. Rd5 {[%clk 0:00:34]}  Rb1+ {[%clk 0:01:01]} 36. Kd2 {[%clk 0:00:34]}  Rb2+ {[%clk 0:01:02]} 37. Ke1 {[%clk 0:00:33]}  Re2+ {[%clk 0:00:58]} 38. Kf1 {[%clk 0:00:32]}  Ra2 {[%clk 0:00:58]} 39. Ke1 {[%clk 0:00:27]}  Rxa4 {[%clk 0:00:54]} 40. Rd8 {[%clk 0:00:23]}  Ra1+ {[%clk 0:00:53]} 41. Kd2 {[%clk 0:00:23]}  Ra2+ {[%clk 0:00:54]} 42. Ke1 {[%clk 0:00:24]}  Ke5 {[%clk 0:00:51]} 43. Re8+ {[%clk 0:00:23]}  Kd4 {[%clk 0:00:51]} 44. Rd8+ {[%clk 0:00:23]}  Kc5 {[%clk 0:00:39]} 45. f3 {[%clk 0:00:19]}  Rxg2 {[%clk 0:00:21]} 46. fxe4 {[%clk 0:00:19]}  Re2+ {[%clk 0:00:17]} 47. Kd1 {[%clk 0:00:17]}  Rxh2 {[%clk 0:00:17]} 48. Rxd3 {[%clk 0:00:17]}  Rh4 {[%clk 0:00:17]} 49. Rd5+ {[%clk 0:00:15]}  Kc6 {[%clk 0:00:16]} 50. Rd4 {[%clk 0:00:12]}  Kc5 {[%clk 0:00:17]} 51. Ra4 {[%clk 0:00:12]}  Kb5 {[%clk 0:00:17]} 52. Rd4 {[%clk 0:00:12]}  Kc5 {[%clk 0:00:18]} 53. Ra4 {[%clk 0:00:11]} 1/2-1/2


[Site "https://www.chess.com"]

[Event "Titled Tuesday Blitz January 10 Early 2023"]
[White "Djokovic, Nebojsa"]
[Black "Molina, Roberto Junio Brito"]
[WhiteFideId "938300"]
[BlackFideId "2109450"]
[WhiteElo "2119"]
[BlackElo "2403"]
[Result "1-0"]
[Round "03"]
[TimeControl "180+2"]
[Date "2023.01.10"]
[WhiteClock "0:00:21"]
[BlackClock "0:00:14"]

1. e4 {[%clk 0:03:00]}  c6 {[%clk 0:02:59]} 2. Nf3 {[%clk 0:03:00]}  d5 {[%clk 0:03:00]} 3. Nc3 {[%clk 0:03:00]}  dxe4 {[%clk 0:02:57]} 4. Nxe4 {[%clk 0:03:00]}  Bg4 {[%clk 0:02:57]} 5. d4 {[%clk 0:02:45]}  Bxf3 {[%clk 0:02:53]} 6. Qxf3 {[%clk 0:02:45]}  Qxd4 {[%clk 0:02:53]} 7. Be3 {[%clk 0:02:45]}  Qxb2 {[%clk 0:02:49]} 8. Bc4 {[%clk 0:02:37]}  Qb4+ {[%clk 0:02:28]} 9. Nd2 {[%clk 0:02:32]}  Nf6 {[%clk 0:02:21]} 10. Rb1 {[%clk 0:02:27]}  Qd6 {[%clk 0:02:20]} 11. Rxb7 {[%clk 0:02:16]}  Nbd7 {[%clk 0:02:20]} 12. O-O {[%clk 0:01:49]}  e6 {[%clk 0:02:17]} 13. Rd1 {[%clk 0:01:45]}  Ne5 {[%clk 0:02:04]} 14. Qe2 {[%clk 0:01:37]}  Qa3 {[%clk 0:01:50]} 15. Nb3 {[%clk 0:01:17]}  Qa4 {[%clk 0:01:26]} 16. Rd4 {[%clk 0:00:50]}  Nxc4 {[%clk 0:01:00]} 17. Rxc4 {[%clk 0:00:49]}  Qa6 {[%clk 0:00:53]} 18. Rc7 {[%clk 0:00:48]}  Ba3 {[%clk 0:00:19]} 19. R7xc6 {[%clk 0:00:40]}  Qb7 {[%clk 0:00:16]} 20. Rc7 {[%clk 0:00:33]}  Qd5 {[%clk 0:00:15]} 21. Rc8+ {[%clk 0:00:27]}  Ke7 {[%clk 0:00:15]} 22. R8c7+ {[%clk 0:00:23]}  Nd7 {[%clk 0:00:14]} 23. Rd4 {[%clk 0:00:21]} 1-0


[Site "https://www.chess.com"]

[Event "Titled Tuesday Blitz January 10 Early 2023"]
[White "Mihajlov, Sebastian"]
[Black "Kosakowski, Jakub"]
[WhiteFideId "1512110"]
[BlackFideId "1185080"]
[WhiteElo "2373"]
[BlackElo "2485"]
[Result "0-1"]
[Round "03"]
[TimeControl "180+2"]
[Date "2023.01.10"]
[WhiteClock "0:00:07"]
[BlackClock "0:00:05"]

1. e4 {[%clk 0:03:00]}  c6 {[%clk 0:02:49]} 2. d4 {[%clk 0:02:57]}  d5 {[%clk 0:02:49]} 3. exd5 {[%clk 0:02:58]}  cxd5 {[%clk 0:02:49]} 4. Bd3 {[%clk 0:02:59]}  Nc6 {[%clk 0:02:49]} 5. c3 {[%clk 0:03:00]}  Qc7 {[%clk 0:02:50]} 6. h3 {[%clk 0:02:58]}  e5 {[%clk 0:02:50]} 7. dxe5 {[%clk 0:02:58]}  Nxe5 {[%clk 0:02:50]} 8. Nf3 {[%clk 0:02:56]}  Nxd3+ {[%clk 0:02:47]} 9. Qxd3 {[%clk 0:02:57]}  Bd6 {[%clk 0:02:48]} 10. O-O {[%clk 0:02:55]}  Ne7 {[%clk 0:02:46]} 11. Re1 {[%clk 0:02:46]}  O-O {[%clk 0:02:45]} 12. Nbd2 {[%clk 0:02:43]}  Bf5 {[%clk 0:02:17]} 13. Qe3 {[%clk 0:02:19]}  Rfe8 {[%clk 0:02:15]} 14. Nb3 {[%clk 0:02:18]}  h6 {[%clk 0:02:11]} 15. Nbd4 {[%clk 0:02:15]}  Bd7 {[%clk 0:02:11]} 16. Bd2 {[%clk 0:02:08]}  a6 {[%clk 0:02:04]} 17. Qd3 {[%clk 0:01:46]}  Qc4 {[%clk 0:01:56]} 18. Qc2 {[%clk 0:01:39]}  Ng6 {[%clk 0:01:47]} 19. Nf5 {[%clk 0:01:31]}  Bf8 {[%clk 0:01:30]} 20. N3d4 {[%clk 0:01:19]}  Rac8 {[%clk 0:01:25]} 21. b3 {[%clk 0:01:08]}  Qc7 {[%clk 0:01:20]} 22. Qd3 {[%clk 0:01:07]}  Qb6 {[%clk 0:00:52]} 23. Qg3 {[%clk 0:01:00]}  Qf6 {[%clk 0:00:51]} 24. Ne3 {[%clk 0:00:46]}  Be6 {[%clk 0:00:43]} 25. Ng4 {[%clk 0:00:42]}  Bxg4 {[%clk 0:00:35]} 26. Qxg4 {[%clk 0:00:43]}  Bd6 {[%clk 0:00:33]} 27. Nf5 {[%clk 0:00:20]}  Bb8 {[%clk 0:00:21]} 28. h4 {[%clk 0:00:17]}  Kh7 {[%clk 0:00:19]} 29. h5 {[%clk 0:00:15]}  Ne5 {[%clk 0:00:19]} 30. Qh3 {[%clk 0:00:16]}  Re6 {[%clk 0:00:15]} 31. Nd4 {[%clk 0:00:15]}  Ree8 {[%clk 0:00:15]} 32. Nf5 {[%clk 0:00:13]}  Ba7 {[%clk 0:00:14]} 33. Be3 {[%clk 0:00:13]}  Bxe3 {[%clk 0:00:14]} 34. Rxe3 {[%clk 0:00:14]}  Nc6 {[%clk 0:00:14]} 35. Rg3 {[%clk 0:00:12]}  Rg8 {[%clk 0:00:10]} 36. Nxg7 {[%clk 0:00:13]}  Ne7 {[%clk 0:00:07]} 37. Re1 {[%clk 0:00:11]}  Rxg7 {[%clk 0:00:05]} 38. Rxg7+ {[%clk 0:00:10]}  Kxg7 {[%clk 0:00:06]} 39. Rxe7 {[%clk 0:00:06]}  Rxc3 {[%clk 0:00:06]} 40. Qc8 {[%clk 0:00:07]}  Rxc8 {[%clk 0:00:05]} 0-1


[Site "https://www.chess.com"]